[Event "Early-Titled-Tuesday-Blitz-September-05-2023"]
[Site "Chess.com"]
[Date "2023.09.05"]
[Round "11"]
[White "Ducke13"]
[Black "ural58"]
[Result "1-0"]
[WhiteElo "2448"]
[BlackElo "2508"]
[TimeControl "180+1"]
[EndTime "10:06:14 PDT"]
[Termination "Ducke13 won by resignation"]

1. d4 {[%clk 0:02:51.9]} 1... d5 {[%clk 0:02:59.7]} 2. g3 {[%clk 0:02:51.7]}
2... Nc6 {[%clk 0:02:55.2]} 3. Nf3 {[%clk 0:02:51.2]} 3... Bf5 {[%clk
0:02:54.9]} 4. Bg2 {[%clk 0:02:50.7]} 4... Nb4 {[%clk 0:02:55]} 5. O-O {[%clk
0:02:18.7]} 5... Nxc2 {[%clk 0:02:52.3]} 6. Nh4 {[%clk 0:02:18.1]} 6... Nxa1
{[%clk 0:02:21.9]} 7. Nxf5 {[%clk 0:02:17.3]} 7... e6 {[%clk 0:02:21.2]} 8. Ne3
{[%clk 0:02:14.3]} 8... c5 {[%clk 0:02:15.7]} 9. b3 {[%clk 0:02:11.4]} 9... Qb6
{[%clk 0:02:07.4]} 10. Bb2 {[%clk 0:02:09.8]} 10... Nxb3 {[%clk 0:02:05.1]} 11.
Qxb3 {[%clk 0:02:07.3]} 11... Qxb3 {[%clk 0:02:04]} 12. axb3 {[%clk 0:02:08.1]}
12... Nf6 {[%clk 0:02:04.3]} 13. Rc1 {[%clk 0:02:04.5]} 13... Rc8 {[%clk
0:02:01.8]} 14. Nd2 {[%clk 0:01:53.4]} 14... Be7 {[%clk 0:01:59.6]} 15. dxc5
{[%clk 0:01:52.9]} 15... Rxc5 {[%clk 0:01:59.1]} 16. Ra1 {[%clk 0:01:37.1]}
16... a6 {[%clk 0:01:57.6]} 17. g4 {[%clk 0:01:20.6]} 17... O-O {[%clk
0:01:48.6]} 18. g5 {[%clk 0:01:20.5]} 18... Ne4 {[%clk 0:01:38.3]} 19. Nxe4
{[%clk 0:01:01.2]} 19... dxe4 {[%clk 0:01:38.2]} 20. Ba3 {[%clk 0:01:01]} 20...
Rc7 {[%clk 0:01:36.2]} 21. Bxe7 {[%clk 0:01:01.5]} 21... Rxe7 {[%clk 0:01:36.8]}
22. Bxe4 {[%clk 0:01:02]} 22... Rc8 {[%clk 0:01:31.9]} 23. Nc4 {[%clk
0:00:57.5]} 23... Rc5 {[%clk 0:01:22.3]} 24. h4 {[%clk 0:00:52.7]} 24... h6
{[%clk 0:01:21]} 25. f4 {[%clk 0:00:47.6]} 25... g6 {[%clk 0:01:14.5]} 26. Rd1
{[%clk 0:00:45.5]} 26... Kg7 {[%clk 0:01:14.6]} 27. Rd8 {[%clk 0:00:43.3]} 27...
hxg5 {[%clk 0:01:13.1]} 28. hxg5 {[%clk 0:00:43.1]} 28... f6 {[%clk 0:01:13.1]}
29. gxf6+ {[%clk 0:00:41.7]} 29... Kxf6 {[%clk 0:01:13.3]} 30. Ne5 {[%clk
0:00:40.4]} 30... g5 {[%clk 0:01:00.4]} 31. Nd7+ {[%clk 0:00:39.1]} 31... Rxd7
{[%clk 0:00:55.1]} 32. Rxd7 {[%clk 0:00:39.3]} 32... b6 {[%clk 0:00:42.1]} 33.
Rd6 {[%clk 0:00:31.6]} 33... gxf4 {[%clk 0:00:28.7]} 34. Rxb6 {[%clk 0:00:30.2]}
34... a5 {[%clk 0:00:29.3]} 35. Kf2 {[%clk 0:00:26]} 35... Ke5 {[%clk 0:00:29]}
36. Bd3 {[%clk 0:00:25.3]} 36... Rc3 {[%clk 0:00:14.1]} 37. Rb5+ {[%clk
0:00:23.4]} 37... Kd4 {[%clk 0:00:13.2]} 38. Bc4 {[%clk 0:00:14.4]} 38... a4
{[%clk 0:00:11.3]} 39. Bxe6 {[%clk 0:00:07.3]} 39... a3 {[%clk 0:00:07.2]} 40.
Ra5 {[%clk 0:00:07]} 40... f3 {[%clk 0:00:04.9]} 41. exf3 {[%clk 0:00:04]} 41...
Rc2+ {[%clk 0:00:04.7]} 42. Kg3 {[%clk 0:00:04.4]} 42... a2 {[%clk 0:00:05.3]}
43. b4 {[%clk 0:00:04.8]} 43... Rb2 {[%clk 0:00:03.5]} 44. Rxa2 {[%clk
0:00:05.2]} 44... Rxb4 {[%clk 0:00:03.8]} 45. Re2 {[%clk 0:00:05.4]} 45... Rb1
{[%clk 0:00:03.2]} 46. Bf5 {[%clk 0:00:05.1]} 46... Rg1+ {[%clk 0:00:03.7]} 47.
Kf4 {[%clk 0:00:05.7]} 47... Kd5 {[%clk 0:00:03.5]} 48. Rd2+ {[%clk 0:00:06.1]}
48... Kc6 {[%clk 0:00:03.7]} 49. Ke5 {[%clk 0:00:05.9]} 49... Re1+ {[%clk
0:00:04.6]} 50. Be4+ {[%clk 0:00:06]} 50... Kc7 {[%clk 0:00:04.6]} 51. f4 {[%clk
0:00:06.7]} 1-0

[Event "Early-Titled-Tuesday-Blitz-September-05-2023"]
[Site "Chess.com"]
[Date "2023.09.05"]
[Round "11"]
[White "Cambek64"]
[Black "NovikovaGalina"]
[Result "1-0"]
[WhiteElo "2511"]
[BlackElo "2416"]
[TimeControl "180+1"]
[EndTime "10:06:17 PDT"]
[Termination "Cambek64 won on time"]

1. e4 {[%clk 0:02:58.9]} 1... e6 {[%clk 0:02:59.8]} 2. d3 {[%clk 0:02:58.3]}
2... d5 {[%clk 0:03:00.7]} 3. Qe2 {[%clk 0:02:58.5]} 3... Nf6 {[%clk 0:03:00.8]}
4. e5 {[%clk 0:02:58.3]} 4... Nfd7 {[%clk 0:03:00.4]} 5. f4 {[%clk 0:02:58.9]}
5... Be7 {[%clk 0:02:57.1]} 6. Nf3 {[%clk 0:02:59.2]} 6... O-O {[%clk
0:02:56.2]} 7. g3 {[%clk 0:02:59.5]} 7... c5 {[%clk 0:02:55.1]} 8. Bg2 {[%clk
0:02:59.3]} 8... Nc6 {[%clk 0:02:53.1]} 9. O-O {[%clk 0:02:58.9]} 9... f5 {[%clk
0:02:49.9]} 10. c4 {[%clk 0:02:58.7]} 10... Nb6 {[%clk 0:02:48]} 11. Be3 {[%clk
0:02:55.3]} 11... d4 {[%clk 0:02:47.9]} 12. Bd2 {[%clk 0:02:52.5]} 12... Bd7
{[%clk 0:02:44.5]} 13. Na3 {[%clk 0:02:52.8]} 13... a6 {[%clk 0:02:43.8]} 14.
Nc2 {[%clk 0:02:53.4]} 14... Rc8 {[%clk 0:02:42.9]} 15. Rfb1 {[%clk 0:02:51.5]}
15... Na4 {[%clk 0:02:34.3]} 16. h4 {[%clk 0:02:46.5]} 16... h6 {[%clk
0:02:32.9]} 17. Qe1 {[%clk 0:02:45.9]} 17... Kh8 {[%clk 0:02:29]} 18. b3 {[%clk
0:02:45.2]} 18... Nb6 {[%clk 0:02:25.8]} 19. b4 {[%clk 0:02:42.3]} 19... Na4
{[%clk 0:02:12.8]} 20. b5 {[%clk 0:02:38.5]} 20... Nb8 {[%clk 0:02:03.7]} 21.
Na3 {[%clk 0:02:36.3]} 21... Be8 {[%clk 0:01:55.7]} 22. Qd1 {[%clk 0:02:30.3]}
22... axb5 {[%clk 0:01:37]} 23. Nxb5 {[%clk 0:02:20.9]} 23... Nc3 {[%clk
0:01:28.8]} 24. Nxc3 {[%clk 0:02:16.3]} 24... dxc3 {[%clk 0:01:29.7]} 25. Bxc3
{[%clk 0:02:16.4]} 25... b6 {[%clk 0:01:13.1]} 26. Rb2 {[%clk 0:01:46.2]} 26...
Qd7 {[%clk 0:01:06.5]} 27. Rab1 {[%clk 0:01:45.9]} 27... Bd8 {[%clk 0:01:06.9]}
28. Qe2 {[%clk 0:01:38]} 28... Nc6 {[%clk 0:01:04.9]} 29. Qe3 {[%clk 0:01:37.5]}
29... Bh5 {[%clk 0:01:04.3]} 30. Kf2 {[%clk 0:01:34.8]} 30... Ra8 {[%clk
0:00:54.4]} 31. Rd2 {[%clk 0:01:35.3]} 31... Ra3 {[%clk 0:00:53.2]} 32. Rb3
{[%clk 0:01:32.2]} 32... Rxb3 {[%clk 0:00:50.6]} 33. axb3 {[%clk 0:01:31.8]}
33... Qa7 {[%clk 0:00:33.5]} 34. d4 {[%clk 0:01:12]} 34... Nxd4 {[%clk
0:00:32.3]} 35. Nxd4 {[%clk 0:01:11]} 35... cxd4 {[%clk 0:00:33.2]} 36. Bxd4
{[%clk 0:01:08.6]} 36... Qa3 {[%clk 0:00:27.2]} 37. Qc3 {[%clk 0:01:06.6]} 37...
Be7 {[%clk 0:00:19.5]} 38. Qb2 {[%clk 0:00:56.7]} 38... Qa5 {[%clk 0:00:19.9]}
39. Be3 {[%clk 0:00:54.2]} 39... Bb4 {[%clk 0:00:17.4]} 40. Rd6 {[%clk
0:00:50.4]} 40... Bc5 {[%clk 0:00:16.1]} 41. Bxc5 {[%clk 0:00:48.2]} 41... Qxc5+
{[%clk 0:00:17]} 42. Qd4 {[%clk 0:00:47.6]} 42... Qa3 {[%clk 0:00:17.6]} 43. Qc3
{[%clk 0:00:46.8]} 43... Qc5+ {[%clk 0:00:11.9]} 44. Qe3 {[%clk 0:00:45.5]}
44... Qa3 {[%clk 0:00:10.6]} 45. Qc3 {[%clk 0:00:38.9]} 45... Rc8 {[%clk
0:00:08.4]} 46. Rxe6 {[%clk 0:00:36.7]} 46... Qa2+ {[%clk 0:00:07.7]} 47. Kg1
{[%clk 0:00:33.9]} 47... Qb1+ {[%clk 0:00:06.5]} 48. Kh2 {[%clk 0:00:33.5]}
48... Bg4 {[%clk 0:00:05.8]} 49. Rxb6 {[%clk 0:00:31.5]} 49... Qa2 {[%clk
0:00:05.8]} 50. Rd6 {[%clk 0:00:28.3]} 50... Rb8 {[%clk 0:00:05.7]} 51. Rd3
{[%clk 0:00:28.2]} 51... Ra8 {[%clk 0:00:01.6]} 52. c5 {[%clk 0:00:27.9]} 1-0

[Event "Early-Titled-Tuesday-Blitz-September-05-2023"]
[Site "Chess.com"]
[Date "2023.09.05"]
[Round "11"]
[White "Vuk2000"]
[Black "MatthewG-p4p"]
[Result "0-1"]
[WhiteElo "2758"]
[BlackElo "2885"]
[TimeControl "180+1"]
[EndTime "10:06:21 PDT"]
[Termination "MatthewG-p4p won by resignation"]

1. d4 {[%clk 0:03:00.9]} 1... Nf6 {[%clk 0:02:56.6]} 2. Bg5 {[%clk 0:03:01.2]}
2... Ne4 {[%clk 0:02:53.6]} 3. Bf4 {[%clk 0:03:01.4]} 3... c5 {[%clk 0:02:54.2]}
4. f3 {[%clk 0:03:01.3]} 4... Qa5+ {[%clk 0:02:49.4]} 5. c3 {[%clk 0:03:01.4]}
5... Nf6 {[%clk 0:02:46.1]} 6. d5 {[%clk 0:03:01.7]} 6... e6 {[%clk 0:02:45.4]}
7. e4 {[%clk 0:03:00.8]} 7... exd5 {[%clk 0:02:46.1]} 8. exd5 {[%clk 0:03:01.5]}
8... d6 {[%clk 0:02:43.4]} 9. Qd2 {[%clk 0:03:01]} 9... Be7 {[%clk 0:02:43.2]}
10. c4 {[%clk 0:03:01.2]} 10... Qb6 {[%clk 0:02:40.9]} 11. Nc3 {[%clk 0:02:46]}
11... O-O {[%clk 0:02:40.1]} 12. g4 {[%clk 0:02:42.5]} 12... Re8 {[%clk
0:02:36.6]} 13. Kf2 {[%clk 0:02:41.1]} 13... Nbd7 {[%clk 0:02:35.2]} 14. h4
{[%clk 0:02:38.5]} 14... Ne5 {[%clk 0:02:23.9]} 15. h5 {[%clk 0:02:15.4]} 15...
Qb4 {[%clk 0:01:58.6]} 16. Bxe5 {[%clk 0:01:46.6]} 16... dxe5 {[%clk 0:01:57.5]}
17. g5 {[%clk 0:01:47.2]} 17... Nd7 {[%clk 0:01:52]} 18. g6 {[%clk 0:01:11.7]}
18... h6 {[%clk 0:01:46.7]} 19. Bd3 {[%clk 0:00:44.2]} 19... fxg6 {[%clk
0:01:32]} 20. hxg6 {[%clk 0:00:34.2]} 20... Bg5 {[%clk 0:01:32.2]} 21. Qc2
{[%clk 0:00:33.8]} 21... e4 {[%clk 0:01:28.4]} 22. Nxe4 {[%clk 0:00:21.2]} 22...
Ne5 {[%clk 0:01:27.4]} 23. Nxg5 {[%clk 0:00:19.2]} 23... Nxd3+ {[%clk
0:01:16.6]} 24. Qxd3 {[%clk 0:00:19.5]} 24... Qxb2+ {[%clk 0:01:06.5]} 25. Ne2
{[%clk 0:00:19.4]} 25... hxg5 {[%clk 0:01:02]} 26. d6 {[%clk 0:00:16.8]} 26...
Bf5 {[%clk 0:00:44.7]} 27. Qd5+ {[%clk 0:00:11.4]} 27... Be6 {[%clk 0:00:44.8]}
28. Qxg5 {[%clk 0:00:10.8]} 28... Bxc4 {[%clk 0:00:42.6]} 29. Rae1 {[%clk
0:00:10]} 29... Rxe2+ {[%clk 0:00:40.4]} 30. Rxe2 {[%clk 0:00:10.4]} 30... Qxe2+
{[%clk 0:00:40.8]} 31. Kg3 {[%clk 0:00:11.1]} 31... Qe6 {[%clk 0:00:29.3]} 32.
Rd1 {[%clk 0:00:04.4]} 32... Qf6 {[%clk 0:00:20.3]} 33. Qh5 {[%clk 0:00:04.8]}
33... Rd8 {[%clk 0:00:17.3]} 34. Qh7+ {[%clk 0:00:04.5]} 34... Kf8 {[%clk
0:00:17.9]} 35. Qh8+ {[%clk 0:00:05.3]} 35... Bg8 {[%clk 0:00:18.4]} 36. Qh5
{[%clk 0:00:04.3]} 36... b6 {[%clk 0:00:16.4]} 37. d7 {[%clk 0:00:03.6]} 37...
Qe6 {[%clk 0:00:12]} 38. Qg5 {[%clk 0:00:03.4]} 38... Rxd7 {[%clk 0:00:11]} 39.
Qf4+ {[%clk 0:00:03.8]} 39... Ke7 {[%clk 0:00:11.4]} 40. Qg5+ {[%clk 0:00:04.3]}
40... Qf6 {[%clk 0:00:11]} 41. Re1+ {[%clk 0:00:04.2]} 41... Kd8 {[%clk
0:00:11.6]} 42. Qxf6+ {[%clk 0:00:03.1]} 42... gxf6 {[%clk 0:00:12.5]} 43. Kf4
{[%clk 0:00:03.7]} 43... Rd5 {[%clk 0:00:11]} 44. Rh1 {[%clk 0:00:02.8]} 44...
Rg5 {[%clk 0:00:07.3]} 45. Rh8 {[%clk 0:00:01.9]} 45... Rxg6 {[%clk 0:00:07.7]}
46. Kf5 {[%clk 0:00:02.8]} 46... Rg3 {[%clk 0:00:08]} 47. Kxf6 {[%clk 0:00:03]}
47... Rxf3+ {[%clk 0:00:07.6]} 48. Ke5 {[%clk 0:00:03.7]} 48... Rg3 {[%clk
0:00:07.7]} 49. Kd6 {[%clk 0:00:04.6]} 49... c4 {[%clk 0:00:07.5]} 50. a4 {[%clk
0:00:04.4]} 50... c3 {[%clk 0:00:07.9]} 51. Rh1 {[%clk 0:00:04.3]} 51... c2
{[%clk 0:00:08.2]} 52. Rf1 {[%clk 0:00:04.4]} 52... Rd3+ {[%clk 0:00:08]} 53.
Kc6 {[%clk 0:00:04]} 53... Rd1 {[%clk 0:00:08.1]} 54. Rf8+ {[%clk 0:00:04.7]}
54... Ke7 {[%clk 0:00:08.1]} 0-1

[Event "Early-Titled-Tuesday-Blitz-September-05-2023"]
[Site "Chess.com"]
[Date "2023.09.05"]
[Round "11"]
[White "Harry_Rakkel"]
[Black "masterofpuppets2"]
[Result "0-1"]
[WhiteElo "2645"]
[BlackElo "2498"]
[TimeControl "180+1"]
[EndTime "10:06:21 PDT"]
[Termination "masterofpuppets2 won on time"]

1. e4 {[%clk 0:03:00.9]} 1... c5 {[%clk 0:02:59.6]} 2. Nf3 {[%clk 0:03:00.1]}
2... Nc6 {[%clk 0:02:59.7]} 3. d4 {[%clk 0:02:59.6]} 3... cxd4 {[%clk
0:03:00.5]} 4. Nxd4 {[%clk 0:02:59.6]} 4... Nf6 {[%clk 0:03:01.1]} 5. Nc3 {[%clk
0:02:59]} 5... d6 {[%clk 0:03:01.7]} 6. Bg5 {[%clk 0:02:58]} 6... e6 {[%clk
0:03:01.1]} 7. Qd2 {[%clk 0:02:56.9]} 7... a6 {[%clk 0:03:00.7]} 8. O-O-O {[%clk
0:02:55.3]} 8... Bd7 {[%clk 0:03:01.2]} 9. f4 {[%clk 0:02:51]} 9... Be7 {[%clk
0:03:01.2]} 10. Kb1 {[%clk 0:02:36.4]} 10... b5 {[%clk 0:02:59.3]} 11. Nxc6
{[%clk 0:02:26.7]} 11... Bxc6 {[%clk 0:02:59]} 12. Bxf6 {[%clk 0:02:26.3]} 12...
gxf6 {[%clk 0:02:39.1]} 13. Bd3 {[%clk 0:02:21.1]} 13... b4 {[%clk 0:02:28.8]}
14. Ne2 {[%clk 0:02:20.1]} 14... Qb6 {[%clk 0:02:29.1]} 15. f5 {[%clk
0:02:14.8]} 15... h5 {[%clk 0:02:23.1]} 16. fxe6 {[%clk 0:02:12.6]} 16... fxe6
{[%clk 0:02:22.9]} 17. Nf4 {[%clk 0:02:11.8]} 17... Bd7 {[%clk 0:02:12.3]} 18.
Bc4 {[%clk 0:02:08.8]} 18... d5 {[%clk 0:01:48.4]} 19. Nxd5 {[%clk 0:02:06.2]}
19... exd5 {[%clk 0:01:46.9]} 20. Qxd5 {[%clk 0:02:06.1]} 20... O-O-O {[%clk
0:01:36.5]} 21. Qf7 {[%clk 0:01:47.6]} 21... Bc5 {[%clk 0:01:27.5]} 22. Rd5
{[%clk 0:01:41.7]} 22... Bc6 {[%clk 0:00:56.6]} 23. Rxh5 {[%clk 0:01:14]} 23...
Rxh5 {[%clk 0:00:53.3]} 24. Qxh5 {[%clk 0:01:13.4]} 24... Bxe4 {[%clk 0:00:49]}
25. Bxa6+ {[%clk 0:01:12.4]} 25... Kb8 {[%clk 0:00:46.2]} 26. Bd3 {[%clk
0:01:09.5]} 26... Bxg2 {[%clk 0:00:40.4]} 27. Re1 {[%clk 0:01:04.2]} 27... Bb7
{[%clk 0:00:29.1]} 28. h4 {[%clk 0:01:02.4]} 28... Ka7 {[%clk 0:00:26.3]} 29.
Qf5 {[%clk 0:00:58.6]} 29... Rd5 {[%clk 0:00:25]} 30. Qg6 {[%clk 0:00:54]} 30...
Re5 {[%clk 0:00:24]} 31. Rf1 {[%clk 0:00:53.4]} 31... Bf2 {[%clk 0:00:19]} 32.
h5 {[%clk 0:00:51.1]} 32... Qe3 {[%clk 0:00:18.1]} 33. b3 {[%clk 0:00:49.4]}
33... Qd4 {[%clk 0:00:16.6]} 34. h6 {[%clk 0:00:42.8]} 34... Re1+ {[%clk
0:00:13.4]} 35. Rxe1 {[%clk 0:00:42.4]} 35... Bxe1 {[%clk 0:00:14.1]} 36. h7
{[%clk 0:00:36.5]} 36... f5 {[%clk 0:00:11.6]} 37. Qxf5 {[%clk 0:00:35.7]} 37...
Bc3 {[%clk 0:00:10.6]} 38. Qa5+ {[%clk 0:00:08.6]} 38... Kb8 {[%clk 0:00:10.9]}
39. Qg5 {[%clk 0:00:05.4]} 39... Ka7 {[%clk 0:00:10]} 40. Qa5+ {[%clk
0:00:05.1]} 40... Kb8 {[%clk 0:00:10.4]} 41. Qg5 {[%clk 0:00:05.7]} 41... Qf6
{[%clk 0:00:10.2]} 42. Qxf6 {[%clk 0:00:05.6]} 42... Bxf6 {[%clk 0:00:11.1]} 43.
Kc1 {[%clk 0:00:04.8]} 43... Kc7 {[%clk 0:00:11.3]} 44. Kd2 {[%clk 0:00:05.3]}
44... Kd6 {[%clk 0:00:11.8]} 45. Ke3 {[%clk 0:00:05.7]} 45... Ke5 {[%clk
0:00:11.7]} 46. Kf2 {[%clk 0:00:04.4]} 46... Kd4 {[%clk 0:00:11.7]} 47. Ke2
{[%clk 0:00:03.9]} 47... Kc3 {[%clk 0:00:12.1]} 48. Ke3 {[%clk 0:00:04.4]} 48...
Kb2 {[%clk 0:00:12.3]} 49. Kf4 {[%clk 0:00:04.6]} 49... Kxa2 {[%clk 0:00:12.4]}
50. Kf5 {[%clk 0:00:05.1]} 50... Bc3 {[%clk 0:00:11.6]} 51. Kg6 {[%clk
0:00:05.4]} 51... Bd5 {[%clk 0:00:10.7]} 52. Kf5 {[%clk 0:00:04.1]} 52... Kb2
{[%clk 0:00:10.8]} 53. Kg5 {[%clk 0:00:04.4]} 53... Kc1 {[%clk 0:00:10.9]} 54.
Kf4 {[%clk 0:00:04.4]} 54... Kd2 {[%clk 0:00:11.4]} 55. Kg4 {[%clk 0:00:04]}
55... Bxb3 {[%clk 0:00:11.6]} 56. Bg6 {[%clk 0:00:01.4]} 56... Bxc2 {[%clk
0:00:11.8]} 0-1

[Event "Early-Titled-Tuesday-Blitz-September-05-2023"]
[Site "Chess.com"]
[Date "2023.09.05"]
[Round "11"]
[White "Eloist"]
[Black "Karttunen"]
[Result "1-0"]
[WhiteElo "2465"]
[BlackElo "2567"]
[TimeControl "180+1"]
[EndTime "10:06:21 PDT"]
[Termination "Eloist won by resignation"]

1. e4 {[%clk 0:03:00.9]} 1... e5 {[%clk 0:02:58.3]} 2. Bc4 {[%clk 0:03:00.5]}
2... Nf6 {[%clk 0:02:57]} 3. d3 {[%clk 0:03:00.5]} 3... c6 {[%clk 0:02:50.7]} 4.
Nf3 {[%clk 0:03:00.5]} 4... Qc7 {[%clk 0:02:44.8]} 5. O-O {[%clk 0:02:59.3]}
5... Be7 {[%clk 0:02:44.5]} 6. Bb3 {[%clk 0:02:58.9]} 6... O-O {[%clk
0:02:44.2]} 7. Re1 {[%clk 0:02:59.1]} 7... h6 {[%clk 0:02:43.4]} 8. c3 {[%clk
0:02:56.9]} 8... d6 {[%clk 0:02:42.8]} 9. Nbd2 {[%clk 0:02:55.5]} 9... Nbd7
{[%clk 0:02:40.3]} 10. d4 {[%clk 0:02:53.2]} 10... Re8 {[%clk 0:02:32.7]} 11.
Nf1 {[%clk 0:02:51.6]} 11... Bf8 {[%clk 0:02:29.1]} 12. Ng3 {[%clk 0:02:51.1]}
12... g6 {[%clk 0:02:28.4]} 13. Be3 {[%clk 0:02:36.5]} 13... Bg7 {[%clk
0:02:21.7]} 14. h3 {[%clk 0:02:34.7]} 14... Nf8 {[%clk 0:02:19.5]} 15. Qd2
{[%clk 0:02:26.8]} 15... Kh7 {[%clk 0:02:19.3]} 16. Bc2 {[%clk 0:02:23.2]} 16...
b6 {[%clk 0:02:00.6]} 17. Nh2 {[%clk 0:02:20.3]} 17... Bb7 {[%clk 0:01:59.2]}
18. f4 {[%clk 0:02:20]} 18... Rad8 {[%clk 0:01:54.3]} 19. Nf3 {[%clk 0:02:15.7]}
19... exd4 {[%clk 0:01:19.2]} 20. cxd4 {[%clk 0:02:14.7]} 20... c5 {[%clk
0:01:16]} 21. d5 {[%clk 0:02:04.6]} 21... Kg8 {[%clk 0:00:53.3]} 22. a4 {[%clk
0:02:01.2]} 22... a6 {[%clk 0:00:41.8]} 23. Rac1 {[%clk 0:01:55.6]} 23... b5
{[%clk 0:00:41.7]} 24. axb5 {[%clk 0:01:55]} 24... axb5 {[%clk 0:00:42.6]} 25.
b4 {[%clk 0:01:54.6]} 25... c4 {[%clk 0:00:40.1]} 26. Bd4 {[%clk 0:01:43]} 26...
N8d7 {[%clk 0:00:38.9]} 27. Ra1 {[%clk 0:01:24.7]} 27... Ra8 {[%clk 0:00:38.2]}
28. Kh2 {[%clk 0:01:23.8]} 28... Rxa1 {[%clk 0:00:36.7]} 29. Rxa1 {[%clk
0:01:23.3]} 29... Ra8 {[%clk 0:00:37.4]} 30. Rxa8+ {[%clk 0:01:22.4]} 30... Bxa8
{[%clk 0:00:37.5]} 31. Bc3 {[%clk 0:01:12.3]} 31... Bb7 {[%clk 0:00:35.4]} 32.
Nd4 {[%clk 0:01:12]} 32... Qb6 {[%clk 0:00:35.2]} 33. Qd1 {[%clk 0:00:57.2]}
33... h5 {[%clk 0:00:34.7]} 34. Qa1 {[%clk 0:00:55.3]} 34... h4 {[%clk
0:00:33.2]} 35. Nge2 {[%clk 0:00:53.6]} 35... Nh5 {[%clk 0:00:33.5]} 36. Qe1
{[%clk 0:00:38.2]} 36... g5 {[%clk 0:00:32.4]} 37. Nf5 {[%clk 0:00:33.4]} 37...
Bxc3 {[%clk 0:00:16.9]} 38. Qxc3 {[%clk 0:00:32.7]} 38... Qf2 {[%clk 0:00:17.6]}
39. Qf3 {[%clk 0:00:16.3]} 39... Qxf3 {[%clk 0:00:17]} 40. gxf3 {[%clk
0:00:16.1]} 40... gxf4 {[%clk 0:00:16.8]} 41. Nxd6 {[%clk 0:00:15.6]} 41... Ba6
{[%clk 0:00:17.4]} 42. Kg2 {[%clk 0:00:12.5]} 42... Ne5 {[%clk 0:00:17.8]} 43.
Kf2 {[%clk 0:00:11.9]} 43... Kf8 {[%clk 0:00:16.5]} 44. Nd4 {[%clk 0:00:12]}
44... c3 {[%clk 0:00:12.6]} 45. N6xb5 {[%clk 0:00:11.1]} 45... Bxb5 {[%clk
0:00:11.8]} 46. Nxb5 {[%clk 0:00:10.7]} 46... Nc4 {[%clk 0:00:11]} 47. Nxc3
{[%clk 0:00:10.5]} 47... Na3 {[%clk 0:00:11.1]} 48. Bd3 {[%clk 0:00:10.5]} 48...
Ke7 {[%clk 0:00:10.3]} 49. e5 {[%clk 0:00:10.5]} 49... f6 {[%clk 0:00:10.5]} 50.
d6+ {[%clk 0:00:10.2]} 50... Kd7 {[%clk 0:00:10.8]} 51. Bf5+ {[%clk 0:00:10]}
51... Kc6 {[%clk 0:00:11.4]} 52. Bg4 {[%clk 0:00:10.2]} 52... Ng7 {[%clk
0:00:09.6]} 53. exf6 {[%clk 0:00:10.3]} 53... Ne8 {[%clk 0:00:10.1]} 54. f7
{[%clk 0:00:10.5]} 54... Nxd6 {[%clk 0:00:10.1]} 55. f8=Q {[%clk 0:00:10.7]}
55... Nab5 {[%clk 0:00:09.2]} 56. Qf6 {[%clk 0:00:09.5]} 56... Nd4 {[%clk
0:00:08.1]} 57. Ne4 {[%clk 0:00:09.1]} 57... Nb5 {[%clk 0:00:07.1]} 58. Nxd6
{[%clk 0:00:09]} 58... Nxd6 {[%clk 0:00:08]} 59. Qxf4 {[%clk 0:00:08.7]} 1-0